bitfinex-derivatives/quotes_SOLF0:USTF0_20241226
["timestamp","ask_amount","ask_price","bid_price","bid_amount"]
[1735251884115,6.2336789,190.0,189.96,2.635]
[1735251885513,2.6347,189.99,189.96,2.635]
[1735251894231,6.2336789,190.0,189.96,2.635]
[1735251894430,8.8682789,190.0,189.96,2.635]
[1735251895226,4.5666,190.02,189.95,1.74170162]
[1735251895533,6.2336789,190.01,189.95,1.74170162]
[1735251895837,6.2336789,190.01,189.98,2.6347]
[1735251899141,8.8680789,190.01,189.97,2.6349]
[1735251901141,2.6343,190.03,189.96,6.2336789]
[1735251901338,3.04,190.02,189.96,6.2336789]
[1735251901747,3.04,190.02,189.98,2.6347]
[1735251902245,3.04,190.02,189.99,2.6346]
[1735251904540,5.6743,190.02,189.99,2.6346]
[1735251908046,2.6343,190.02,189.99,2.6346]
[1735251909843,3.04,190.03,189.97,6.2336789]
[1735251910047,5.6742,190.03,190.0,2.6345]
[1735251910745,3.04,190.03,190.0,2.6345]
[1735251942472,3.04,190.03,190.01,2.6344]
[1735251943364,3.04,190.03,190.02,2.6343]
[1735251943865,3.04,190.04,190.02,2.6343]
[1735251946672,3.04,190.04,190.01,2.6344]
[1735251946972,5.6741,190.04,190.01,2.6344]
[1735251948272,11.9077789,190.04,190.01,2.6344]
[1735251950172,6.2336789,190.04,189.99,2.6347]
[1735251950376,3.04,190.06,189.97,35.35847528]
[1735251950578,9.2736789,190.06,189.97,29.12479638]
[1735251950774,9.2736789,190.06,189.99,6.2336789]
[1735251951169,9.2736789,190.06,190.04,2.6339]
[1735251952078,3.04,190.06,190.04,2.6339]
[1735251953894,11.9073789,190.07,190.04,2.6339]
[1735251954377,1.5473,190.08,189.99,6.2336789]
[1735251954679,9.2736789,190.08,190.06,2.6337]
[1735251955381,6.2336789,190.08,190.07,2.6336]
[1735251956077,6.2336789,190.1,190.02,6.2336789]
[1735251956387,9.2736789,190.1,190.0,1.6275]
[1735251956576,9.2736789,190.1,190.02,6.2336789]
[1735251956981,11.9068789,190.1,190.07,2.6336]
[1735251957981,8.8668789,190.1,190.07,2.6336]
[1735251959787,6.2336789,190.1,190.07,2.6336]
[1735251961985,6.2336789,190.08,190.04,2.6339]
[1735251963488,8.8671789,190.08,190.04,2.6339]
[1735251965698,6.2336789,190.06,190.04,2.6339]
[1735251967086,6.2336789,190.06,189.97,1.5428]
[1735251967385,9.2736789,190.06,189.98,6.2336789]
[1735251967786,2.634,190.05,190.01,2.6344]
[1735251967994,9.2736789,190.06,190.01,2.6344]
[1735251968210,9.2736789,190.06,189.98,6.2336789]
[1735251968391,9.2736789,190.06,189.99,2.6346]
[1735251968392,6.2336789,190.04,189.99,2.6346]
[1735251969396,2.6343,190.02,189.99,2.6346]
[1735251969896,6.2336789,190.04,189.95,6.2336789]
[1735251970097,2.6344,190.01,189.95,6.2336789]
[1735251970399,5.6744,190.01,189.95,6.2336789]
[1735251970801,2.6347,190.0,189.92,29.12479638]
[1735251971000,8.8683789,190.0,189.93,6.2336789]
[1735251971209,6.2336789,190.0,189.95,2.6352]
[1735251971500,6.2336789,190.0,189.93,6.2336789]
[1735251971703,6.2336789,189.98,189.91,8.79429909]
[1735251971903,6.2336789,189.98,189.91,15.02797799]
[1735251972203,2.635,189.97,189.94,2.6354]
[1735251972498,6.2336789,189.98,189.91,7.28119909]
[1735251972702,2.6354,189.95,189.9,49.08783443]
[1735251972904,6.2336789,189.94,189.9,1.96522301]
[1735251973102,6.2336789,189.92,189.88,7.28119909]
[1735251973301,6.2336789,189.9,189.88,7.28119909]
[1735251973905,6.2336789,189.9,189.86,2.6365]
[1735251974302,6.2336789,189.88,189.84,2.6368]
[1735251974502,6.2336789,189.88,189.82,29.12479638]
[1735251974803,8.8698789,189.88,189.83,2.6368]
[1735251975403,2.6364,189.87,189.82,2.637]
[1735251976310,2.6364,189.87,189.81,8.8708789]
[1735251976504,8.8701789,189.86,189.81,2.6372]
[1735251976705,11.9101789,189.86,189.81,2.6372]
[1735251978808,2.6369,189.83,189.78,2.6375]
[1735251979009,6.2336789,189.85,189.74,1.6682]
[1735251979205,6.2336789,189.83,189.74,1.6682]
[1735251979509,2.6372,189.82,189.76,2.6378]
[1735251979803,3.04,189.81,189.76,2.6378]
[1735251980409,11.9109789,189.81,189.76,2.6378]
[1735251982111,11.9109789,189.81,189.75,2.638]
[1735251982309,2.6373,189.8,189.75,2.638]
[1735251982606,8.8709789,189.8,189.75,2.638]
[1735251982805,8.8709789,189.8,189.73,6.2336789]
[1735251982806,3.04,189.81,189.73,6.2336789]
[1735251983004,6.2336789,189.8,189.75,2.638]
[1735251983406,8.8710789,189.8,189.75,2.638]
[1735251984811,6.2336789,189.8,189.71,6.2336789]
[1735251985012,6.2336789,189.78,189.74,2.6382]
[1735251988010,9.2736789,189.78,189.74,2.638]
[1735251988211,3.04,189.78,189.74,2.638]
[1735251988407,3.04,189.78,189.72,6.2336789]
[1735251988608,3.04,189.78,189.75,2.638]
[1735251992422,3.04,189.78,189.77,2.6377]
[1735251993028,8.8709789,189.81,189.77,2.6377]
[1735251993029,6.2336789,189.81,189.77,2.6377]
[1735251993231,3.04,189.8,189.78,2.6376]
[1735251994328,3.04,189.82,189.74,6.2336789]
[1735251994934,3.04,189.82,189.78,2.6375]
[1735251995925,3.04,189.82,189.74,6.2336789]
[1735251996118,3.04,189.82,189.79,2.6375]
[1735251998619,3.04,189.82,189.8,2.6373]
[1735251998821,6.2336789,189.83,189.8,2.6373]
[1735251999014,3.04,189.82,189.79,2.6374]
[1735252001015,5.6771,189.82,189.79,2.6374]
[1735252002121,5.6771,189.82,189.78,2.6376]
[1735252005230,5.6771,189.82,189.79,2.6375]
[1735252005522,5.6771,189.82,189.73,6.2336789]
[1735252005523,2.6375,189.79,189.73,6.2336789]
[1735252005922,2.6375,189.79,189.76,2.6378]
[1735252010230,2.6373,189.8,189.77,2.6376]
[1735252012533,3.04,189.82,189.78,2.6376]
[1735252012534,5.6772,189.82,189.78,2.6376]
[1735252012733,5.6772,189.82,189.74,29.12479638]
[1735252013229,5.6772,189.82,189.78,2.6375]
[1735252017728,5.6772,189.82,189.76,7.28119909]
[1735252018032,5.6772,189.82,189.79,2.6375]
[1735252018832,5.6772,189.82,189.75,29.12479638]
[1735252019132,5.6772,189.82,189.78,2.6376]
[1735252019832,3.04,189.82,189.79,2.6374]
[1735252020432,8.8708789,189.81,189.78,2.6375]
[1735252027441,2.6372,189.81,189.78,2.6375]
[1735252035641,5.6772,189.81,189.78,2.6375]
[1735252043249,3.04,189.81,189.73,29.12479638]
[1735252043548,2.6375,189.79,189.73,29.12479638]
[1735252044241,2.6375,189.79,189.72,29.12479638]
[1735252044447,2.6375,189.79,189.76,2.6379]
[1735252046049,20.0,189.72,189.71,73.01973842]
[1735252046348,9.2736789,189.72,189.68,172.00433768]
[1735252046545,6.2336789,189.71,189.68,161.43633769]
[1735252046746,2.6388,189.7,189.68,161.43633769]
[1735252046949,6.2336789,189.71,189.68,161.43633769]
[1735252047146,2.6386,189.71,189.68,161.43633769]
[1735252047348,9.2736789,189.72,189.68,161.43633769]
[1735252047756,2.6382,189.75,189.68,164.07523769]
[1735252047957,75.04722883,189.7,189.67,3.04]
[1735252048157,75.04722883,189.7,189.68,3.109]
[1735252048553,72.52312883,189.7,189.68,3.109]
[1735252048861,22.00790863,189.74,189.68,3.109]
[1735252049453,38.34729059,189.75,189.68,3.109]
[1735252049654,38.34729059,189.75,189.68,9.3426789]
[1735252049854,16.33938196,189.75,189.68,9.3426789]
[1735252050258,16.33938196,189.75,189.71,2.6385]
[1735252050453,16.33938196,189.75,189.7,6.2336789]
[1735252050659,16.33938196,189.75,189.71,3.04]
[1735252050863,22.00790863,189.77,189.74,2.6382]
[1735252051363,22.00790863,189.78,189.75,2.638]
[1735252051863,38.2503997,189.79,189.75,2.638]
[1735252052062,38.2503997,189.79,189.75,5.678]
[1735252056367,22.00790863,189.76,189.75,5.678]
[1735252057669,38.2503997,189.76,189.75,5.678]
[1735252058062,22.00790863,189.77,189.75,5.678]
[1735252058263,22.00790863,189.77,189.75,2.638]
[1735252059767,36.85692284,189.77,189.75,2.638]
[1735252061170,36.85692284,189.77,189.76,2.6379]
[1735252062566,6.2336789,189.78,189.76,2.6379]
[1735252069774,6.2336789,189.78,189.72,3.04]
[1735252070478,6.2336789,189.78,189.76,2.6379]
[1735252074078,8.8713789,189.78,189.74,2.638]
[1735252074879,8.8713789,189.78,189.75,2.638]
[1735252076979,6.2336789,189.76,189.75,2.638]
[1735252077784,6.2336789,189.76,189.74,2.6381]
[1735252078181,8.8715789,189.76,189.73,2.6383]
[1735252078393,6.2336789,189.74,189.73,2.6383]
[1735252080082,6.2336789,189.76,189.74,2.6381]
[1735252082486,6.2336789,189.77,189.76,2.6378]
[1735252089388,22.00790863,189.79,189.76,2.6378]
[1735252089686,22.00790863,189.79,189.71,9.2736789]
[1735252090388,22.00790863,189.79,189.78,2.6376]
[1735252090778,6.2336789,189.8,189.71,9.2736789]
[1735252092089,6.2336789,189.8,189.78,2.6375]
[1735252093883,22.00790863,189.81,189.78,2.6375]
[1735252094188,6.2336789,189.8,189.78,2.6375]
[1735252105495,6.2336789,189.8,189.69,1.6673]
[1735252105496,9.2736789,189.8,189.69,1.6673]
[1735252105797,6.2336789,189.74,189.69,1.6673]
[1735252106901,8.8718789,189.74,189.7,2.6387]
[1735252107801,6.2336789,189.72,189.68,1.5822]
[1735252107999,6.2336789,189.72,189.69,2.6388]
[1735252109396,8.8721789,189.72,189.69,2.6388]
[1735252110197,6.2336789,189.72,189.68,1.5822]
[1735252110597,6.2336789,189.72,189.69,2.6388]
[1735252110797,6.2336789,189.72,189.68,1.5822]
[1735252111298,6.2336789,189.7,189.64,2.11592703]
[1735252112195,6.2336789,189.68,189.62,1.6452]
[1735252112701,3.04,189.7,189.63,6.2336789]
[1735252112905,9.2736789,189.7,189.63,6.2336789]
[1735252114207,6.2336789,189.68,189.58,49.4798789]
[1735252114399,6.2336789,189.68,189.59,1.6392]
[1735252115502,6.2336789,189.68,189.63,2.6397]
[1735252115503,2.6392,189.67,189.63,2.6397]
[1735252115905,6.2336789,189.66,189.63,2.6397]
[1735252125511,6.2336789,189.66,189.63,0.1171]
[1735252125717,6.2336789,189.64,189.58,40.0]
[1735252125921,3.04,189.65,189.58,40.0]
[1735252125922,6.2336789,189.6,189.58,40.0]
[1735252127510,6.2336789,189.6,189.59,2.6403]
[1735252136627,6.2336789,189.6,189.58,42.6403]
[1735252137126,8.8737789,189.6,189.58,40.0]
[1735252137828,3.04,189.59,189.58,40.0]
[1735252139326,5.6803,189.59,189.58,40.0]
[1735252140029,3.04,189.59,189.58,40.0]
[1735252143928,3.04,189.59,189.58,42.6404]
[1735252146322,22.00790863,189.66,189.58,40.0]
[1735252146522,3.04,189.65,189.58,40.0]
[1735252146727,6.2336789,189.61,189.58,40.0]
[1735252149526,6.2336789,189.61,189.6,2.6401]
[1735252156948,9.2736789,189.63,189.62,2.6398]
[1735252157143,6.2336789,189.63,189.62,2.6398]
[1735252158947,3.04,189.64,189.62,2.6398]
[1735252159143,6.2336789,189.63,189.62,2.6398]
[1735252163051,3.04,189.64,189.62,2.6398]
[1735252163445,6.2336789,189.63,189.62,2.6398]
[1735252183357,22.00790863,189.66,189.64,2.6394]
[1735252183546,22.00790863,189.66,189.6,1.6606]
[1735252183749,22.00790863,189.66,189.62,6.2336789]
[1735252183950,146.5480649,189.7,189.62,6.2336789]
[1735252184150,146.5480649,189.7,189.64,6.2336789]
[1735252185052,9.2736789,189.72,189.64,6.2336789]
[1735252185248,6.2336789,189.72,189.64,6.2336789]
[1735252186655,6.2336789,189.72,189.71,2.6386]
[1735252189361,3.04,189.74,189.72,2.6384]
[1735252189560,6.2336789,189.73,189.72,2.6384]
[1735252190250,3.04,189.74,189.72,2.6384]
[1735252190455,6.2336789,189.73,189.72,2.6384]
[1735252196863,6.2336789,189.73,189.64,6.2336789]
[1735252197063,3.04,189.74,189.71,2.6385]
[1735252198961,5.6782,189.74,189.71,2.6385]
[1735252202566,6.2336789,189.72,189.71,2.6385]
[1735252204867,6.2336789,189.72,189.64,6.2336789]
[1735252205073,6.2336789,189.72,189.7,2.6387]
[1735252205471,2.6383,189.73,189.7,2.6387]
[1735252205769,6.2336789,189.71,189.7,2.6387]
[1735252206575,6.2336789,189.71,189.62,40.0]
[1735252206871,6.2336789,189.68,189.62,40.0]
[1735252207271,8.8726789,189.68,189.62,40.0]
[1735252208476,8.8726789,189.68,189.65,2.6394]
[1735252209476,2.6391,189.67,189.64,2.6395]
[1735252212077,2.6391,189.67,189.65,2.6394]
[1735252212279,8.8729789,189.66,189.62,40.0]
[1735252213377,2.6394,189.65,189.62,40.0]
[1735252213577,6.2336789,189.64,189.62,40.0]
[1735252214573,8.8733789,189.64,189.62,40.0]
[1735252215977,5.6797,189.63,189.62,40.0]
[1735252217280,2.6402,189.6,189.52,1.6076853]
[1735252217580,6.2336789,189.58,189.52,1.6076853]
[1735252217781,6.2336789,189.56,189.52,1.6076853]
[1735252218578,6.2336789,189.56,189.54,2.6409]
[1735252224686,6.2336789,189.56,189.55,2.6408]
[1735252240493,6.2336789,189.56,189.54,2.6408]
[1735252240794,6.2336789,189.55,189.54,2.6408]
[1735252245402,5.6806,189.57,189.54,2.6408]
[1735252245601,6.2336789,189.55,189.54,2.6408]
[1735252252712,21.92441397,189.58,189.57,2.6405]
[1735252253008,24.96441397,189.58,189.57,2.6405]
[1735252253208,3.04,189.58,189.57,2.6405]
[1735252255709,3.04,189.58,189.56,2.6406]
[1735252256009,6.2336789,189.57,189.56,2.6406]
[1735252258214,6.2336789,189.57,189.52,2.6412]
[1735252258215,2.6409,189.55,189.52,2.6412]
[1735252258416,6.2336789,189.53,189.44,11.0981789]
[1735252258617,6.2336789,189.51,189.44,11.0981789]
[1735252259009,6.2336789,189.51,189.5,2.6415]
[1735252262115,2.6418,189.48,189.44,2.6423]
[1735252262324,6.2336789,189.45,189.44,2.6423]
[1735252262513,6.2336789,189.45,189.39,1.5987]
[1735252263319,6.2336789,189.45,189.43,2.6424]
[1735252265520,2.6428,189.41,189.34,2.6436]
[1735252265720,62.07535907,189.54,189.26,58.80990964]
[1735252265721,6.2336789,189.38,189.29,9.4982789]
[1735252265921,3.04,189.37,189.29,9.4982789]
[1735252267526,3.04,189.37,189.35,2.6435]
[1735252267527,6.2336789,189.36,189.35,2.6435]
[1735252275831,6.2336789,189.36,189.24,3.2077]
[1735252276125,3.04,189.37,189.24,9.4413789]
[1735252276126,6.2336789,189.31,189.24,9.4413789]
[1735252276728,6.2336789,189.31,189.24,3.2077]
[1735252277431,6.2336789,189.31,189.3,2.6442]
[1735252280036,3.04,189.32,189.31,2.6442]
[1735252280532,2.6453,189.44,189.24,7.8245789]
[1735252280736,2.643,189.4,189.36,2.6434]
[1735252281133,3.04,189.43,189.36,2.6434]
[1735252281334,2.6431,189.39,189.36,2.6434]
[1735252281536,3.04,189.38,189.36,2.6434]
[1735252281732,3.04,189.38,189.13,55.5399333]
[1735252281733,6.2336789,189.37,189.13,55.5399333]
[1735252281937,6.2336789,189.26,189.18,6.2336789]
[1735252282330,6.2336789,189.26,189.25,2.645]
[1735252283430,6.2336789,189.26,189.14,1.5231]
[1735252283630,6.2336789,189.21,189.14,1.5231]
[1735252283830,9.2736789,189.21,189.14,1.5231]
[1735252284938,9.2736789,189.21,189.19,2.6458]
[1735252285236,9.2736789,189.21,189.14,1.5231]
[1735252285441,6.2336789,189.19,189.14,1.5231]
[1735252287134,9.2736789,189.21,189.14,1.5231]
[1735252288438,9.2736789,189.21,189.2,2.6457]
[1735252288837,1.6737,189.33,189.14,1.5231]
[1735252288838,3.04,189.22,189.14,7.7567789]
[1735252289140,6.2336789,189.22,189.14,7.7567789]
[1735252289336,6.2336789,189.22,189.14,1.5231]
[1735252289536,6.2336789,189.22,189.21,2.6456]
[1735252298245,3.04,189.23,189.14,7.7567789]
[1735252298441,3.04,189.23,189.22,2.6454]
[1735252301645,2.6448,189.27,189.16,6.2336789]
[1735252301842,21.92441397,189.33,189.27,2.6447]
[1735252301843,6.2336789,189.28,189.27,2.6447]
[1735252302949,6.2336789,189.28,189.23,2.6453]
[1735252303146,3.04,189.3,189.21,1.5714]
[1735252303147,6.2336789,189.26,189.21,1.5714]
[1735252303849,6.2336789,189.26,189.24,2.645]
[1735252306043,6.2336789,189.26,189.25,2.645]
[1735252309750,8.8785789,189.26,189.23,2.6452]
[1735252309951,6.2336789,189.24,189.23,2.6452]
[1735252314655,6.2336789,189.24,189.09,5.2943]
[1735252314953,6.2336789,189.22,189.14,1.6305]
[1735252316441,6.2336789,189.22,189.2,2.6456]
[1735252319244,6.2336789,189.22,189.14,1.6305]
[1735252319452,6.2336789,189.2,189.14,1.6305]
[1735252319952,6.2336789,189.2,189.18,2.646]
[1735252321354,2.6459,189.19,189.16,2.6462]
[1735252321553,6.2336789,189.18,189.16,2.6462]
[1735252324551,6.2336789,189.18,189.07,1.5428]
[1735252324759,6.2336789,189.15,189.07,3.154]
[1735252324958,9.2936789,189.15,189.07,3.154]
[1735252325447,3.06,189.15,189.14,2.6465]
[1735252325647,3.06,189.19,189.1,6.2336789]
[1735252325856,6.2336789,189.17,189.1,6.2336789]
[1735252326252,6.2336789,189.17,189.07,6.214]
[1735252326253,6.2336789,189.17,189.08,6.2336789]
[1735252326856,6.2336789,189.17,189.16,2.6463]
[1735252340361,3.06,189.19,189.09,6.2336789]
[1735252340561,9.2936789,189.19,189.18,2.646]
[1735252345365,6.2336789,189.19,189.18,2.646]
[1735252350471,21.92441397,189.23,189.12,11.5271789]
[1735252350677,6.2336789,189.22,189.14,6.2336789]
[1735252350970,6.2336789,189.22,189.15,3.1573]
[1735252351173,21.92441397,189.23,189.22,2.6454]
[1735252351674,6.2336789,189.24,189.16,6.2336789]
[1735252351869,6.2336789,189.24,189.23,2.6453]
[1735252353374,21.92441397,189.29,189.27,2.6447]
[1735252353570,24.96441397,189.29,189.2,6.2336789]
[1735252353874,28.15809287,189.3,189.29,2.6444]
[1735252354375,21.92441397,189.3,189.29,2.6444]
[1735252354967,147.14539769,189.34,189.33,2.6439]
[1735252354968,19.39651397,189.34,189.33,2.6439]
[1735252355171,25.63019287,189.34,189.33,2.6439]
[1735252356372,6.2336789,189.34,189.33,2.6439]
[1735252362676,6.2336789,189.34,189.32,2.644]
[1735252362978,6.2336789,189.33,189.24,6.2336789]
[1735252363282,6.2336789,189.3,189.29,2.6444]
[1735252370185,6.2336789,189.32,189.24,6.2336789]
[1735252370384,6.2336789,189.32,189.3,2.6442]
[1735252371181,3.04,189.31,189.08,22.05371611]
[1735252371498,6.2336789,189.29,189.2,6.2336789]
[1735252371685,6.2336789,189.29,189.21,1.5664]
[1735252371885,6.2336789,189.29,189.28,2.6446]
[1735252376588,3.04,189.31,189.28,2.6446]
[1735252376787,6.2336789,189.29,189.28,2.6446]
[1735252379094,3.04,189.31,189.28,2.6446]
[1735252379296,6.2336789,189.29,189.28,2.6446]
[1735252388502,3.04,189.31,189.29,2.6444]
[1735252388708,6.2336789,189.3,189.29,2.6444]
[1735252390804,3.04,189.31,189.29,2.6444]
[1735252391106,6.2336789,189.3,189.29,2.6444]
[1735252392306,2.6439,189.33,189.3,2.6443]
[1735252392503,6.2336789,189.31,189.3,2.6443]
[1735252393507,2.6439,189.33,189.21,7.8000789]
[1735252393508,21.89660242,189.34,189.25,6.2336789]
[1735252393804,9.2736789,189.33,189.26,1.643]
[1735252394001,21.89660242,189.34,189.33,2.6439]
[1735252394799,16.84080242,189.34,189.33,2.6439]
[1735252395102,3.04,189.38,189.37,2.6433]
[1735252395308,58.85815907,189.41,189.33,6.2336789]
[1735252395498,58.85815907,189.41,189.4,2.6429]
[1735252396604,6.2336789,189.44,189.42,2.6426]
[1735252397606,6.2336789,189.44,189.43,2.6424]
[1735252400411,6.2336789,189.44,189.41,2.6426]
[1735252400612,6.2336789,189.41,189.35,1.6521]
[1735252402410,6.2336789,189.41,189.4,2.6429]
[1735252405314,3.04,189.44,189.42,2.6425]
[1735252405507,6.2336789,189.43,189.42,2.6425]
[1735252411117,6.2336789,189.45,189.43,2.6424]
[1735252417618,6.2336789,189.45,189.42,2.6425]
[1735252417823,6.2336789,189.43,189.42,2.6425]
[1735252423330,3.04,189.46,189.45,2.6422]
[1735252423529,6.2336789,189.46,189.38,6.2336789]
[1735252423929,6.2336789,189.46,189.4,6.2336789]
[1735252424537,6.2336789,189.46,189.45,2.6422]
[1735252425337,2.6415,189.5,189.4,6.2336789]
[1735252425638,6.2336789,189.47,189.46,2.6419]
[1735252427034,53.46856706,189.52,189.42,6.2336789]
[1735252427235,6.2336789,189.5,189.42,6.2336789]
[1735252427435,6.2336789,189.5,189.42,7.9025789]
[1735252427841,3.04,189.51,189.5,2.6415]
[1735252428042,9.2736789,189.51,189.5,2.6415]
[1735252429738,21.87741157,189.55,189.51,2.6412]
[1735252429943,6.2336789,189.54,189.46,6.2336789]
[1735252430144,6.2336789,189.52,189.44,6.2336789]
[1735252430443,6.2336789,189.52,189.5,2.6414]
[1735252434750,6.2336789,189.52,189.42,1.6689]
[1735252435045,6.2336789,189.5,189.48,2.6417]
[1735252435749,6.2336789,189.5,189.49,2.6416]
[1735252439347,2.641,189.54,189.43,6.2336789]
[1735252439554,9.2736789,189.54,189.45,6.2336789]
[1735252439851,6.2336789,189.54,189.45,6.2336789]
[1735252440048,6.2336789,189.54,189.52,2.6411]
[1735252444956,6.2336789,189.54,189.45,7.8191789]
[1735252445155,6.2336789,189.54,189.53,2.6411]
[1735252456760,6.2336789,189.54,189.52,2.6412]
[1735252463463,5.6808,189.55,189.52,2.6412]
[1735252463663,6.2336789,189.53,189.52,2.6412]
[1735252468873,11.9144789,189.55,189.52,2.6412]
[1735252469575,9.2736789,189.55,189.45,7.8191789]
[1735252469770,21.87741157,189.57,189.55,2.6407]
[1735252470069,28.11109047,189.57,189.47,6.2336789]
[1735252470276,28.11109047,189.57,189.49,6.2336789]
[1735252470774,28.11109047,189.57,189.49,7.7534789]
[1735252471476,6.2336789,189.57,189.49,7.7534789]
[1735252472578,6.2336789,189.57,189.54,2.6408]
[1735252475778,6.2336789,189.57,189.49,7.7534789]
[1735252475978,6.2336789,189.57,189.55,2.6408]
[1735252477577,6.2336789,189.57,189.56,2.6407]
[1735252479687,5.6804,189.58,189.56,2.6407]
[1735252479888,6.2336789,189.57,189.56,2.6407]
[1735252485992,6.2336789,189.57,189.55,2.6408]
[1735252486887,5.6804,189.58,189.55,2.6408]
[1735252487191,6.2336789,189.56,189.55,2.6408]
[1735252490191,6.2336789,189.56,189.49,1.5198]
[1735252490496,6.2336789,189.54,189.49,1.5198]
[1735252492493,6.2336789,189.54,189.52,2.6412]
[1735252493902,2.6412,189.53,189.47,2.6418]
[1735252494102,3.04,189.58,189.45,1.5855]
[1735252494103,6.2336789,189.52,189.45,1.5855]
[1735252494603,6.2336789,189.48,189.4,6.2336789]
[1735252494799,6.2336789,189.48,189.4,1.6205]
[1735252495200,6.2336789,189.48,189.45,2.6421]
[1735252495797,6.2336789,189.46,189.4,1.6205]
[1735252496108,6.2336789,189.44,189.4,1.6205]
[1735252496297,6.2336789,189.44,189.41,2.6427]
[1735252499807,6.2336789,189.44,189.4,1.6205]
[1735252500003,6.2336789,189.44,189.42,2.6426]
[1735252501495,6.2336789,189.44,189.4,2.6428]
[1735252501806,6.2336789,189.42,189.4,2.6428]
[1735252504104,8.8763789,189.42,189.36,2.6434]
[1735252504305,8.8763789,189.42,189.34,4.6939]
[1735252504306,6.2336789,189.4,189.34,4.6939]
[1735252505206,8.8766789,189.4,189.36,2.6433]
[1735252506011,6.2336789,189.38,189.31,6.2336789]
[1735252507109,6.2336789,189.38,189.36,2.6433]
[1735252508111,6.2336789,189.38,189.37,2.6433]
[1735252515917,2.6429,189.4,189.37,2.6433]
[1735252516118,6.2336789,189.38,189.37,2.6433]
[1735252523321,3.04,189.43,189.3,6.2336789]
[1735252523521,6.2336789,189.39,189.3,6.2336789]
[1735252524115,6.2336789,189.39,189.3,9.2736789]
[1735252524320,6.2336789,189.39,189.38,2.6432]
[1735252534841,6.2336789,189.39,189.3,9.2736789]
[1735252535038,6.2336789,189.39,189.37,2.6433]
[1735252546147,8.8766789,189.39,189.37,2.6433]
[1735252546751,5.683,189.4,189.37,2.6433]
[1735252552555,2.643,189.4,189.37,2.6433]
[1735252560456,8.8766789,189.4,189.37,2.6433]
[1735252581270,8.8766789,189.4,189.3,9.2736789]
[1735252581471,2.643,189.4,189.38,2.6431]
[1735252592685,5.6628,189.41,189.38,2.6431]
[1735252598385,2.6429,189.4,189.38,2.6431]
[1735252603895,8.8765789,189.4,189.38,2.6431]
[1735252605197,3.02,189.41,189.39,2.643]
[1735252606094,21.87741157,189.44,189.37,2.6433]
[1735252606294,6.2336789,189.43,189.36,6.2336789]
[1735252606587,6.2336789,189.43,189.37,4.8182]
[1735252607192,6.2336789,189.43,189.41,2.6427]
[1735252610592,6.2336789,189.44,189.41,2.6427]
[1735252610987,6.2336789,189.44,189.42,2.6426]
[1735252611997,6.2336789,189.44,189.43,2.6425]
[1735252621802,3.02,189.47,189.45,2.6422]
[1735252622005,6.2336789,189.46,189.45,2.6422]
[1735252624708,9.2536789,189.46,189.45,2.6422]
[1735252626004,9.2536789,189.46,189.44,2.6423]
[1735252626307,6.2336789,189.45,189.44,2.6423]
[1735252626508,3.02,189.46,189.44,2.6423]
[1735252626709,6.2336789,189.45,189.44,2.6423]
[1735252628708,6.2336789,189.45,189.37,11.0518789]
[1735252630005,6.2336789,189.45,189.44,2.6423]
[1735252643930,21.87741157,189.48,189.38,6.2336789]
[1735252644123,6.2336789,189.46,189.38,6.2336789]
[1735252645520,6.2336789,189.46,189.45,2.6422]
[1735252645920,3.02,189.48,189.38,6.2336789]
[1735252646122,24.51911157,189.49,189.46,2.642]
[1735252646325,6.2336789,189.47,189.46,2.642]
[1735252650931,3.02,189.49,189.48,2.6418]
[1735252651123,9.2536789,189.49,189.48,2.6418]
[1735252656630,11.8952789,189.49,189.46,2.6419]
[1735252656936,6.2336789,189.47,189.46,2.6419]
[1735252663445,6.2336789,189.47,189.38,6.2336789]
[1735252663643,6.2336789,189.47,189.46,2.6418]
[1735252667451,5.6614,189.49,189.46,2.6418]
[1735252667744,5.02160935,189.5,189.41,6.2336789]
[1735252668047,6.2336789,189.48,189.41,6.2336789]
[1735252669448,6.2336789,189.48,189.47,2.6417]
[1735252670046,5.02160935,189.5,189.47,2.6417]